bitfinex/quotes_ETHUSD_20250415
["timestamp","ask_amount","ask_price","bid_price","bid_amount"]
[1744725331171,0.6845288,1631.0,1630.7,6.13233]
[1744725331373,0.05,1630.4,1630.3,47.904]
[1744725331585,0.7345288,1631.0,1630.4,6.13346]
[1744725331888,8.8e-06,1631.0,1630.9,6.13158]
[1744725332088,6.12587,1632.5,1630.8,6.13188]
[1744725332089,0.05,1632.3,1632.1,6.12688]
[1744725332377,0.05,1631.9,1631.6,54.03275]
[1744725332582,0.05,1631.7,1631.4,47.877]
[1744725332884,0.05,1631.4,1630.5,0.8671]
[1744725333087,0.05,1631.0,1630.6,6.13251]
[1744725333390,0.05,1630.9,1630.2,54.01112]
[1744725333556,0.05,1630.4,1630.2,47.877]
[1744725333752,0.05,1630.4,1629.4,6.13709]
[1744725333753,0.05,1630.0,1629.5,47.877]
[1744725333965,0.05,1630.1,1629.5,47.877]
[1744725334162,0.05,1630.1,1629.6,6.13624]
[1744725334361,0.05,1630.1,1629.5,47.877]
[1744725334362,0.05,1630.1,1629.8,6.13542]
[1744725334584,0.05,1630.1,1629.8,12.27096]
[1744725334790,0.05,1629.6,1629.1,0.05]
[1744725334947,6.13226,1630.8,1629.1,0.05]
[1744725334948,0.05,1629.8,1629.3,6.1375]
[1744725335276,0.05,1630.6,1630.3,6.13381]
[1744725335449,0.05,1630.6,1629.6,6.13647]
[1744725335649,0.05,1630.2,1629.8,0.8403]
[1744725335850,0.05,1629.8,1629.1,0.05]
[1744725336050,0.05,1630.0,1629.1,0.05]
[1744725336252,0.05,1630.3,1629.1,0.05]
[1744725336451,0.05,1630.7,1630.3,6.1335]
[1744725336653,0.5962,1631.3,1629.9,47.79670133]
[1744725336654,0.05,1630.5,1629.9,47.79670133]
[1744725336854,0.05,1629.8,1629.1,0.05]
[1744725337196,0.05,1629.4,1629.3,6.1376]
[1744725337348,0.5962,1630.1,1629.4,6.13722]
[1744725337349,0.05,1630.1,1629.4,6.13722]
[1744725337683,0.45795768,1631.2,1630.4,6.13346]
[1744725337684,0.05,1630.9,1630.4,6.13346]
[1744725337882,0.45795768,1631.2,1630.3,47.79406599]
[1744725338083,0.05,1631.4,1630.4,47.872]
[1744725338285,0.05,1630.9,1630.7,6.13233]
[1744725338584,0.05,1631.2,1631.1,6.13083]
[1744725338747,0.05,1631.1,1630.3,47.865]
[1744725338949,0.05,1631.3,1631.1,6.13083]
[1744725339148,0.05,1632.4,1631.1,6.13083]
[1744725339149,0.05,1631.2,1631.1,6.13083]
[1744725339348,0.05,1631.3,1631.1,6.13083]
[1744725339548,0.05,1631.3,1631.2,6.13045]
[1744725339786,0.05,1631.3,1630.6,0.8451]
[1744725339989,0.05,1630.9,1630.8,6.13174]
[1744725340158,0.05,1631.3,1630.4,6.13346]
[1744725340488,0.05,1631.5,1631.4,6.1297]
[1744725340677,0.05,1631.3,1631.2,6.13039]
[1744725340874,0.05,1630.9,1630.8,6.13172]
[1744725341187,0.05,1631.3,1631.2,6.13045]
[1744725341361,0.05,1631.6,1631.5,6.12932]
[1744725341564,0.05,1631.5,1631.4,6.1297]
[1744725341807,0.05,1631.3,1631.2,47.848]
[1744725342006,0.05,1631.2,1631.1,6.13083]
[1744725342382,0.05,1631.7,1631.5,6.12932]
[1744725342704,0.05,1631.2,1631.1,6.13083]
[1744725343004,0.05,1630.9,1630.8,6.13159]
[1744725343371,0.05,1630.8,1630.7,12.2644]
[1744725343578,0.05,1630.7,1630.6,6.13269]
[1744725343786,47.848,1632.3,1630.7,6.13233]
[1744725344006,10.91151,1632.2,1630.5,47.848]
[1744725344208,6.12812,1631.9,1630.6,6.13271]
[1744725344405,6.12838,1631.8,1630.6,6.13271]
[1744725344614,6.12808,1631.9,1630.6,6.13271]
[1744725344778,6.13039,1631.3,1630.6,6.13271]
[1744725344976,6.12786,1631.9,1631.1,6.13002]
[1744725345184,0.6462,1632.4,1631.1,6.13002]
[1744725345185,6.12632,1632.3,1631.1,6.13083]
[1744725345384,6.12634,1632.3,1631.6,12.25746]
[1744725345587,6.12738,1632.1,1631.3,6.12988]
[1744725345788,0.6462,1632.4,1630.5,47.848]
[1744725346081,6.13044,1631.3,1630.5,49.67964813]
[1744725346283,6.12897,1631.6,1631.0,6.13117]
[1744725346608,6.12997,1631.4,1630.7,6.13215]
[1744725346812,0.612897,1631.6,1630.5,43.54685813]
[1744725346813,6.741947,1631.6,1630.5,43.54685813]
[1744725347014,6.13179,1630.9,1630.0,290.0]
[1744725347215,6.13262,1630.7,1630.1,6.13454]
[1744725347417,6.13233,1630.7,1630.0,290.0]
[1744725347593,1.5101,1631.5,1630.1,6.13437]
[1744725347792,1.5101,1631.5,1630.5,6.13276]
[1744725348007,1.5101,1631.5,1630.8,6.13166]
[1744725348186,1.5101,1631.5,1630.3,47.833]
[1744725348387,1.5101,1631.5,1630.0,290.0]
[1744725348388,6.13083,1631.1,1630.0,290.0]
[1744725348683,0.613083,1631.0,1630.0,290.0]
[1744725348887,0.54049105,1631.4,1630.0,296.13462]
[1744725349107,0.54049105,1631.4,1630.3,6.13384]
[1744725349307,0.54049105,1631.4,1630.6,6.13268]
[1744725349624,0.54049105,1631.4,1630.7,6.13229]
[1744725349920,6.13322,1630.5,1630.0,290.0]
[1744725350123,6.13008,1631.3,1630.1,6.13455]
[1744725350321,6.13273,1630.6,1630.0,296.13474]
[1744725350493,6.13267,1630.7,1630.0,296.13484]
[1744725350689,0.54049105,1630.6,1630.0,290.0]
[1744725350997,0.54049105,1630.6,1630.5,6.13308]
[1744725351207,0.54049105,1630.6,1630.4,6.13325]
[1744725351388,0.54049105,1630.6,1630.0,290.0]
[1744725351592,6.67320105,1630.6,1630.0,290.0]
[1744725351784,0.60202443,1630.5,1630.0,290.0]
[1744725351985,8.37610443,1630.5,1630.0,290.0]
[1744725352208,2.24302443,1630.5,1630.0,290.0]
[1744725352520,0.60202443,1630.5,1630.0,290.0]
[1744725352724,0.60202443,1630.5,1630.0,286.48031166]
[1744725352725,0.54049105,1630.4,1630.0,286.48031166]
[1744725352923,6.67412105,1630.4,1630.0,286.48031166]
[1744725353092,0.06153338,1630.3,1630.0,286.48031166]
[1744725353290,0.54049105,1630.4,1630.0,298.76021126]
[1744725353516,0.06153338,1630.9,1630.1,6.13459]
[1744725353715,0.06153338,1630.9,1630.7,6.13204]
[1744725353902,6.13111,1631.1,1630.5,6.13308]
[1744725354101,0.06153338,1630.9,1630.0,292.61494166]
[1744725354431,6.19315338,1630.9,1630.1,0.0613362]
[1744725354721,6.19333338,1630.9,1630.1,6.13456]
[1744725354923,0.55339534,1631.0,1630.1,6.13459]
[1744725355143,0.55339534,1631.0,1630.5,6.13302]
[1744725355431,0.61492872,1630.9,1630.4,6.13327]
[1744725355725,0.55339534,1630.9,1630.8,6.13195]
[1744725356722,0.55339534,1630.9,1629.9,6.13509]
[1744725356723,1.11139523,1630.9,1629.9,6.13509]
[1744725356909,0.06153338,1630.8,1630.7,6.13233]
[1744725357097,1.11139523,1630.9,1630.6,6.13248]
[1744725357300,1.91139523,1630.9,1630.8,6.13195]
[1744725357503,0.55339534,1630.9,1630.8,6.13195]
[1744725357825,5.34e-06,1630.9,1630.8,6.13195]
[1744725358219,6.12831,1631.8,1631.2,6.13016]
[1744725358415,6.12831,1631.8,1631.2,6.13029]
[1744725358416,0.06153338,1631.7,1631.2,6.13029]
[1744725358620,0.62164521,1631.7,1630.5,53.96805]
[1744725358917,0.56011183,1631.6,1631.5,6.12932]
[1744725359118,1.83e-06,1631.6,1631.5,6.12932]
[1744725359309,0.33615019,1632.2,1631.8,6.12785]
[1744725359697,0.33615019,1632.2,1631.5,6.12932]
[1744725359919,0.33615019,1632.2,1631.4,53.95843]
[1744725360118,0.33615019,1632.2,1632.1,6.12707]
[1744725360336,0.05,1632.4,1632.1,6.12707]
[1744725360562,0.05,1632.4,1632.3,6.12632]
[1744725361330,1e-05,1632.4,1632.3,6.12632]
[1744725361740,1e-05,1632.4,1632.0,6.12718]
[1744725361948,1e-05,1632.4,1632.0,6.1273]
[1744725362164,1e-05,1632.4,1632.1,6.12679]
[1744725362327,1e-05,1632.4,1631.9,6.12749]
[1744725362650,1e-05,1632.4,1632.3,6.12632]
[1744725362852,1e-05,1632.4,1632.3,6.18756513]
[1744725363056,1e-05,1632.4,1632.3,6.18755791]
[1744725363222,1.0981,1632.8,1632.0,6.12739]
[1744725363419,1.0981,1632.8,1632.6,6.12502]
[1744725363649,1.0981,1632.8,1632.7,0.06124486]
[1744725363936,1.0981,1632.8,1632.7,6.18606486]
[1744725364252,1.0981,1632.8,1632.7,6.12482]
[1744725364642,0.05,1633.4,1632.7,47.813]
[1744725364841,0.05,1633.4,1632.8,6.12442]
[1744725365180,0.05,1633.4,1633.3,6.12257]
[1744725365548,0.33475093,1633.6,1633.5,6.12182]
[1744725365743,0.6845288,1633.8,1633.7,6.12107]
[1744725366046,0.6845288,1633.8,1633.0,6.12369]
[1744725366247,0.06153338,1633.7,1632.9,47.796]
[1744725366772,6.12182,1633.5,1632.6,6.12504]
[1744725366988,6.12289,1633.3,1632.7,0.06123357]
[1744725367291,12.91853538,1633.4,1632.7,6.12462]
[1744725367588,1.6112,1633.6,1632.8,6.12444]
[1744725367889,0.06153338,1633.5,1632.9,6.12386]
[1744725368053,0.06153338,1633.5,1632.7,6.12478]
[1744725368242,6.18349338,1633.5,1632.9,6.12388]
[1744725368449,6.18349338,1633.5,1632.9,6.12384]
[1744725368660,6.12365,1633.1,1632.4,6.12572]
[1744725368981,6.12335,1633.1,1632.5,6.12536]
[1744725369187,0.06153338,1633.2,1632.6,6.18642692]
[1744725369389,0.06153338,1633.3,1632.5,6.12526]
[1744725369553,6.12332,1633.1,1632.3,6.12632]
[1744725369754,0.06153338,1633.0,1632.3,6.12632]
[1744725370093,0.06153338,1633.3,1632.7,6.1248]
[1744725370299,0.06153338,1633.5,1632.8,6.12431]
[1744725370583,7.73279,1633.6,1633.0,6.12346]
[1744725370789,0.06153338,1633.5,1632.7,6.12456]
[1744725370990,0.61683814,1633.5,1632.5,6.12557]
[1744725371144,6.67726476,1633.5,1632.9,6.12405]
[1744725371562,0.55530476,1633.5,1632.2,1.606]
[1744725371861,0.55530476,1633.5,1632.6,6.12483]
[1744725371862,6.12303,1633.2,1632.6,6.12483]
[1744725372059,6.12321,1633.2,1632.4,6.12594]
[1744725372362,6.12242,1633.4,1632.5,0.03031545]
[1744725372568,6.12242,1633.4,1632.8,6.12424]
[1744725372782,6.12294,1633.2,1632.5,6.12542]
[1744725372977,6.12294,1633.2,1632.6,12.2502]
[1744725373183,6.19913768,1633.3,1632.7,6.15496318]
[1744725373388,6.12314,1633.2,1632.3,6.12631]
[1744725373583,6.12314,1633.2,1632.6,6.12511]
[1744725373768,6.74295777,1633.2,1632.6,6.12489]
[1744725373970,0.87654236,1633.4,1633.0,6.12355]
[1744725374175,0.8,1633.4,1633.0,6.12369]
[1744725374372,0.8,1633.4,1632.8,6.12421]
[1744725374571,0.8,1633.4,1632.9,6.12407]
[1744725374785,0.07653018,1633.3,1632.7,6.12481]
[1744725374989,6.92222,1633.4,1632.8,6.12432]
[1744725375172,0.8,1633.4,1632.7,6.12482]
[1744725375372,0.8,1633.4,1632.5,6.12557]
[1744725375373,1.68773006,1633.6,1632.9,6.12391]
[1744725375589,6.12285,1633.3,1632.7,12.24936]
[1744725375888,6.12219,1633.4,1632.8,0.03030727]
[1744725376193,7.73273,1633.6,1632.5,6.12549]
[1744725376194,1.6112,1633.6,1633.2,6.12282]
[1744725376397,6.12136,1633.7,1632.6,6.12519]
[1744725376589,12.24262,1633.7,1633.2,6.12276]
[1744725376771,0.6845288,1633.8,1632.5,16.10079488]
[1744725376974,0.6845288,1633.8,1633.6,6.12122]
[1744725377200,4.16100759,1634.2,1633.6,6.12122]
[1744725377201,4.16100759,1634.2,1634.1,6.11957]
[1744725377501,4.79e-06,1634.2,1634.1,6.14977225]
[1744725377704,6.85e-06,1634.4,1634.3,6.11882]
[1744725378196,4.54305914,1634.6,1634.5,6.11807]
[1744725378402,4.54305914,1634.6,1634.4,6.11829]
[1744725378599,6.11827,1634.5,1633.9,6.12016]
[1744725378800,4.54305914,1634.6,1633.9,6.12016]
[1744725379003,4.54305914,1634.6,1634.0,6.11995]
[1744725379206,4.54305914,1634.6,1634.4,6.11808]
[1744725379409,4.54305914,1634.6,1634.3,6.11863]
[1744725379704,4.54305914,1634.6,1634.3,6.11855]
[1744725380000,4.54305914,1634.6,1634.3,6.11877]
[1744725380201,4.54305914,1634.6,1633.9,6.12005]
[1744725380404,0.6278994,1635.1,1634.2,6.1192]
[1744725380708,6.11828,1634.5,1633.9,6.12018]
[1744725380910,6.19358452,1634.8,1634.2,6.11889]
[1744725381071,0.6278994,1635.1,1634.2,6.11887]
[1744725381072,6.11685,1634.9,1634.2,6.11887]
[1744725381271,0.70436893,1635.1,1634.7,6.11702]
[1744725381480,0.70436893,1635.1,1634.1,6.1195]
[1744725381481,0.6278994,1635.1,1634.6,6.11755]
[1744725381819,0.6278994,1635.1,1634.6,6.11752]
[1744725382120,0.6278994,1635.1,1634.8,6.11671]
[1744725382323,0.6278994,1635.1,1635.0,6.1162]
[1744725382616,0.6278994,1635.1,1634.4,1.5292]
[1744725382617,6.11624,1635.0,1634.4,6.11839]
[1744725382826,6.11713,1634.8,1634.1,6.11951]
[1744725383022,0.67441394,1635.0,1634.6,6.11741]
[1744725383208,0.6278994,1635.1,1634.6,6.11743]
[1744725383405,0.6278994,1635.1,1634.8,6.11694]
[1744725383727,0.6278994,1635.1,1634.7,6.11716]
[1744725383868,0.6278994,1635.1,1634.6,6.11755]
[1744725384073,0.6278994,1635.1,1634.4,6.11841]
[1744725384272,0.6278994,1635.1,1634.1,6.11932]
[1744725384273,6.11734,1634.7,1634.1,6.11932]
[1744725384473,6.19417425,1634.6,1634.0,6.11964]
[1744725384771,1.65067425,1634.6,1633.0,49.3021]
[1744725385075,6.12022,1634.0,1633.4,12.24392]
[1744725385276,6.12257,1633.3,1632.7,6.12453]
[1744725385504,1.5742,1633.8,1632.5,7.68367]
[1744725385505,6.19975503,1633.2,1632.5,7.68367]
[1744725385707,6.19951503,1633.2,1632.3,53.87024]
[1744725385982,6.12176,1633.6,1632.4,6.12576]
[1744725386211,0.07653188,1633.5,1632.3,53.87009]
[1744725386412,0.07653188,1633.5,1632.6,6.12492]
[1744725386574,0.07653188,1633.5,1632.5,6.12535]
[1744725386575,6.12327,1633.2,1632.5,6.12535]
[1744725386772,0.07655016,1633.1,1632.2,6.12662]
[1744725387009,0.07655016,1633.1,1632.1,0.05]
[1744725387010,6.12473,1632.8,1632.1,6.17685]
[1744725387205,7.78809,1633.0,1632.1,6.17685]
[1744725387206,0.07657232,1632.9,1632.2,6.12633]
[1744725387419,2.29690265,1633.0,1632.6,6.12502]
[1744725387644,2.29690265,1633.0,1632.6,6.1249]
[1744725387645,0.55603326,1633.0,1632.6,6.1249]
[1744725387791,0.07655436,1632.9,1632.3,6.12614]
[1744725387996,0.55603326,1633.0,1632.8,6.12428]
[1744725388326,0.55603326,1633.0,1632.9,6.12407]
[1744725388529,0.55603326,1633.0,1632.8,6.12428]
[1744725388530,1.6302,1633.4,1632.8,6.12444]
[1744725388731,1.5339,1633.8,1633.3,6.12235]
[1744725388929,0.07651076,1634.1,1633.7,6.12105]
[1744725389078,6.11857,1634.4,1633.8,6.15061531]
[1744725389277,6.12008,1634.0,1633.4,6.12202]
[1744725389489,6.12008,1634.0,1633.3,12.24474]
[1744725389490,6.19686663,1633.9,1633.3,12.24474]
[1744725389792,12.2391,1634.2,1633.2,6.12288]
[1744725390101,0.07651064,1634.1,1632.9,6.12407]
[1744725390302,6.19536138,1634.3,1633.7,6.1208]
[1744725390504,0.07650138,1634.3,1633.9,6.12009]
[1744725390796,0.611857,1634.4,1633.8,6.12059]
[1744725390797,6.11849,1634.4,1633.8,6.12059]
[1744725391022,6.19483248,1634.5,1633.9,12.24024]
[1744725391219,6.19483248,1634.5,1633.9,6.12007]
[1744725391438,0.07649248,1634.5,1633.3,6.12257]
[1744725391587,7.58552003,1634.6,1634.1,6.11927]
[1744725391788,2.2736994,1635.1,1633.6,6.12144]
[1744725391991,8.3895694,1635.1,1634.0,6.11978]
[1744725392192,2.2736994,1635.1,1634.0,6.11995]
[1744725392404,0.07645648,1635.0,1633.6,6.12121]
[1744725392603,6.11689,1634.9,1634.3,6.11846]
[1744725392837,6.1175,1634.7,1634.1,6.1194]
[1744725393144,0.0764747,1634.8,1634.0,6.11993]
[1744725393346,6.11793,1634.6,1634.1,0.03019005]
[1744725393639,6.11776,1634.6,1634.0,12.23939]
[1744725393797,12.23578,1634.6,1634.0,6.11959]
[1744725394137,6.11849,1634.4,1633.9,6.12019]
[1744725394342,6.11849,1634.4,1633.8,6.12066]
[1744725394343,0.07648742,1634.3,1633.8,12.24116]
[1744725394630,0.07648742,1634.3,1633.3,6.12233]
[1744725394631,6.1192,1634.2,1633.3,6.12233]
[1744725394796,0.07651087,1634.1,1633.0,6.12369]
[1744725394989,6.12071,1633.8,1633.2,6.12289]
[1744725395215,6.12168,1633.6,1633.0,12.24706]
[1744725395529,0.07653049,1633.7,1632.7,1.5435]
[1744725395728,6.12167,1633.6,1633.0,6.12357]
[1744725395929,6.12307,1633.2,1632.6,6.12506]
[1744725396130,0.07654634,1633.1,1633.0,250.0]
[1744725396295,6.19986634,1633.1,1633.0,248.98330804]
[1744725396495,6.12332,1633.1,1633.0,245.46913188]
[1744725396705,6.12332,1633.1,1633.0,242.17983444]
[1744725396706,6.19986903,1633.1,1633.0,242.17983444]
[1744725396934,0.63551508,1633.1,1633.0,241.46216952]
[1744725397247,0.63551508,1633.1,1632.1,0.05]
[1744725397248,6.12592,1632.5,1632.1,0.05]
[1744725397397,0.0765802,1632.9,1632.3,6.12604]
[1744725397592,6.20050519,1633.0,1632.2,6.12643]
[1744725397794,12.32443519,1633.0,1632.2,6.12643]
[1744725398146,0.07656519,1633.0,1632.3,6.12614]
[1744725398361,9.72079488,1634.0,1632.4,0.03035007]
[1744725398504,0.07653297,1633.9,1632.8,6.12444]
[1744725398846,6.12108,1633.7,1632.4,1.6434]
[1744725399016,0.07653801,1633.6,1632.9,6.12391]
[1744725399337,6.19821801,1633.6,1632.9,0.03030461]
[1744725399634,6.19821801,1633.6,1632.5,6.12553]
[1744725399635,0.6198218,1633.5,1632.5,6.12553]
[1744725399802,0.07654362,1633.4,1632.6,6.15521633]
[1744725400007,0.07654129,1633.6,1632.9,6.1239]
[1744725400216,0.07654129,1633.6,1632.7,6.12464]
[1744725400423,6.12242,1633.4,1632.6,6.12503]
[1744725400627,0.07654832,1633.3,1632.6,6.12499]
[1744725401005,6.19929832,1633.3,1632.5,6.12539]
[1744725401204,1.30870015,1633.3,1632.5,6.12542]
[1744725401402,1.30870015,1633.3,1632.1,0.05]
[1744725401603,6.12393,1633.0,1632.2,6.12647]
[1744725401812,0.55868172,1633.2,1632.1,0.05]
[1744725401813,0.07656522,1632.9,1632.3,0.03035954]
[1744725402027,0.63524741,1633.2,1632.7,6.12466]
[1744725402239,0.63524741,1633.2,1632.5,6.12537]
[1744725402426,0.63524741,1633.2,1632.1,6.17683]
[1744725402612,0.07655125,1633.1,1632.1,0.05]
[1744725402941,6.19877474,1633.4,1632.2,6.1267]
[1744725403102,0.07656474,1633.4,1632.1,0.05]
[1744725403306,0.8,1633.5,1633.1,6.12323]
[1744725403527,0.8,1633.5,1633.3,6.12244]
[1744725403730,0.8,1633.5,1632.6,6.12519]
[1744725403936,0.8,1633.5,1633.4,6.12219]
[1744725404332,0.8,1633.5,1633.4,6.15244789]
[1744725404644,0.8,1633.5,1633.4,6.12219]
[1744725404810,0.07650932,1634.2,1633.5,6.1217]
[1744725405143,6.19573932,1634.2,1633.5,6.12164]
[1744725405348,1.12213329,1634.2,1633.1,6.1233]
[1744725405553,0.07650932,1634.2,1633.1,6.1233]
[1744725405713,0.07650932,1634.2,1633.5,6.12153]
[1744725406045,0.07650578,1634.3,1633.1,6.12332]
[1744725406270,8.04667065,1635.0,1634.6,6.1177]
[1744725406416,8.04667065,1635.0,1634.9,6.11658]
[1744725407043,7.58552003,1635.0,1634.8,6.11678]
[1744725407244,7.58552003,1635.0,1634.6,6.11751]
[1744725407447,7.58552003,1635.0,1634.9,6.11658]
[1744725407945,7.58552003,1635.0,1634.8,12.23361]
[1744725408247,7.58552003,1635.0,1634.5,6.11788]
[1744725408409,7.58552003,1635.0,1634.6,6.11769]
[1744725409055,7.58552003,1635.0,1634.0,55.49226]
[1744725409056,0.07645763,1634.9,1634.0,49.3725]
[1744725409221,8.49096431,1635.0,1634.5,6.11782]
[1744725409550,8.49096431,1635.0,1634.1,6.1193]
[1744725409750,6.11723,1634.8,1633.9,6.12018]
[1744725409949,6.11861,1634.4,1633.8,6.12066]
[1744725410250,0.07649374,1634.3,1633.2,1.6333]
[1744725410421,0.07649374,1634.3,1633.3,6.12257]
[1744725410618,6.11946,1634.2,1633.2,1.6333]
[1744725410950,6.11995,1634.0,1633.4,6.12189]
[1744725411143,0.07651009,1633.9,1633.4,6.12201]
[1744725411466,0.07651337,1634.0,1632.9,6.12407]
[1744725411754,0.69612571,1634.0,1633.5,6.12178]
[1744725411963,0.07651337,1634.0,1632.9,6.899807]
[1744725412118,6.19657337,1634.0,1633.4,12.24389]
[1744725412450,6.119,1634.3,1633.6,6.12112]
[1744725412656,0.07650214,1634.3,1633.4,6.12217]
[1744725412956,6.12021,1634.0,1633.4,6.12186]
[1744725413155,0.07650775,1633.9,1633.3,12.24498]
[1744725413364,0.07650775,1633.9,1633.5,6.12175]
[1744725413570,0.07650964,1634.0,1633.3,6.12249]
[1744725413738,6.12067,1633.9,1633.2,6.12276]
[1744725413936,0.07651152,1633.8,1632.9,0.03025212]
[1744725414245,12.31831152,1633.8,1633.2,6.12294]
[1744725414447,0.07651152,1633.8,1633.2,0.03028481]
[1744725414782,0.07651152,1633.8,1632.8,0.005]
[1744725414783,6.19757152,1633.8,1632.9,6.12407]
[1744725414988,6.12145,1633.6,1633.0,6.15363042]
[1744725415135,0.07653066,1633.5,1633.0,0.03029042]
[1744725415330,6.19761078,1633.7,1632.8,0.005]
[1744725415591,6.12352,1633.1,1632.8,0.005]
[1744725415736,6.12407,1632.9,1632.8,0.005]
[1744725415937,7.94888659,1632.9,1632.8,0.005]
[1744725416133,6.12297,1633.2,1632.8,0.005]
[1744725416360,0.07655827,1633.1,1632.8,0.005]
[1744725416574,6.12395,1633.0,1632.8,0.005]
[1744725416877,6.20062791,1632.9,1632.8,0.005]
[1744725417237,16.72142279,1632.9,1632.8,1e-05]
[1744725417431,16.72142279,1632.9,1631.6,6.12878]
[1744725417432,6.12648,1632.3,1631.6,6.12878]
[1744725417665,6.12648,1632.3,1631.7,0.0304059]
[1744725417887,6.12648,1632.3,1631.7,6.12856]
[1744725418037,0.07658702,1632.4,1631.8,6.12815]
[1744725418238,6.12584,1632.5,1631.9,6.12777]
[1744725418437,6.1267,1632.2,1631.3,6.12994]
[1744725418675,6.12895,1631.7,1631.1,0.05]
[1744725418974,6.12707,1632.1,1631.1,0.05]
[1744725419143,6.20421053,1632.0,1631.2,6.13045]
[1744725419474,12.2564,1631.9,1631.3,6.12993]
[1744725419646,12.2564,1631.9,1631.1,0.05]
[1744725419647,0.07661178,1632.0,1631.1,0.05]
[1744725419973,0.07660213,1632.3,1631.3,6.13008]
[1744725420146,6.12701,1632.2,1631.2,6.13018]
[1744725420353,6.12746,1632.0,1631.5,6.12929]
[1744725420573,6.12876,1631.7,1631.1,6.18067]
[1744725420813,0.07661829,1631.6,1631.1,0.05]
[1744725421098,6.12865,1631.7,1631.1,0.05]
[1744725421281,0.0766278,1631.9,1631.6,6.12869]
[1744725421484,0.07659789,1632.5,1632.1,6.12684]
[1744725421684,0.07657943,1632.8,1632.3,6.12618]
[1744725422019,0.07657943,1632.8,1632.2,6.12657]
[1744725422197,6.12482,1632.7,1632.0,6.12723]
[1744725422496,0.07658611,1632.6,1631.2,6.13021]
[1744725422807,9.72079488,1632.0,1631.1,0.05]
[1744725422962,0.07661788,1631.9,1631.1,0.05]
[1744725423163,0.07661788,1631.9,1631.2,0.03046085]
[1744725423397,6.12842,1631.8,1631.1,0.05]
[1744725423598,0.0766227,1631.8,1631.1,0.05]
[1744725423881,15.77079488,1632.6,1631.3,6.13005]
[1744725423882,6.2032833,1632.3,1631.3,6.13005]
[1744725424205,0.0766033,1632.3,1631.6,6.12878]
[1744725424406,0.0766033,1632.3,1631.6,6.12874]
[1744725424566,0.07659217,1632.4,1631.4,6.12968]
[1744725424763,6.12436,1632.9,1632.1,12.25381]
[1744725424986,0.07657239,1632.8,1632.1,6.12681]
[1744725425300,6.20010025,1633.1,1632.3,6.12608]
[1744725425502,6.20010025,1633.1,1632.3,6.12601]
[1744725425673,6.20010025,1633.1,1631.7,6.1285]
[1744725425674,6.12482,1632.7,1631.6,47.775]
[1744725425862,9.72079488,1633.2,1632.1,6.12681]
[1744725425863,0.07656993,1632.6,1632.1,6.12681]
[1744725426059,6.1249,1632.7,1631.1,6.18063]
[1744725426288,6.12721,1632.1,1631.4,6.12955]
[1744725426476,0.07660203,1632.0,1631.4,6.12967]
[1744725426883,0.07660204,1632.3,1631.7,6.12852]
[1744725427086,0.07660204,1632.3,1631.5,6.12905]
[1744725427289,0.07660204,1632.3,1631.6,6.12892]
[1744725427484,0.07660204,1632.3,1631.8,6.12819]
[1744725427673,0.07658657,1632.4,1631.9,6.12781]
[1744725427872,0.07658657,1632.4,1631.8,6.12819]
[1744725428084,12.32895657,1632.4,1631.7,6.12855]
[1744725428311,0.07658657,1632.4,1631.9,6.12761]
[1744725428608,0.07658657,1632.4,1631.7,1.225746]
[1744725428609,0.8,1632.3,1632.1,6.12687]
[1744725428810,0.07657138,1633.0,1632.1,0.03037184]
[1744725428975,6.12445,1632.8,1632.2,6.1266]
[1744725429171,0.07656363,1632.7,1632.1,6.12673]
[1744725429375,6.12519,1632.6,1632.0,6.1274]
[1744725429574,6.2025163,1632.5,1631.8,6.12817]
[1744725429805,6.12649,1632.3,1631.7,6.12852]
[1744725430072,6.12713,1632.1,1631.6,6.12878]
[1744725430274,0.07658941,1632.0,1631.4,6.12958]
[1744725430477,0.07658941,1632.0,1631.3,6.13008]
[1744725430478,0.07660115,1632.2,1631.5,0.0304314]
[1744725430818,6.12495,1632.7,1632.1,6.12694]
[1744725431008,0.07657673,1632.9,1632.0,6.12745]
[1744725431213,6.20065673,1632.9,1632.3,6.12611]
[1744725431412,0.07657673,1632.9,1632.5,6.12556]
[1744725431611,0.07657673,1632.9,1632.2,6.1267]
[1744725431918,0.07655988,1633.6,1633.2,6.12277]
[1744725432081,0.07655988,1633.6,1633.1,6.12322]
[1744725432414,0.07652756,1633.6,1632.6,6.12482]
[1744725432618,0.07652383,1633.7,1633.2,6.12287]
[1744725432780,6.19779383,1633.7,1633.1,6.12329]
[1744725432981,6.12199,1633.5,1632.9,6.1239]
[1744725433180,6.19798946,1633.6,1633.0,6.12342]
[1744725433384,0.07652946,1633.6,1633.0,6.12365]
[1744725433611,6.12236,1633.4,1632.5,1.5207]
[1744725433810,6.19936415,1633.3,1632.3,6.12616]
[1744725434009,6.12296,1633.2,1632.6,6.12495]
[1744725434209,6.19921415,1633.3,1632.7,12.24916]
[1744725434410,0.07653415,1633.3,1632.6,6.12519]
[1744725434694,0.612236,1633.4,1632.9,6.12407]
[1744725434886,0.612236,1633.4,1632.9,12.24796]
[1744725435086,0.07653582,1633.5,1633.0,6.15385932]
[1744725435328,0.07653582,1633.5,1632.6,6.12519]
[1744725435628,0.07653582,1633.5,1633.0,6.12343]
[1744725435997,0.07653582,1633.5,1633.0,6.12369]
[1744725436322,0.07653045,1633.7,1633.3,6.12227]
[1744725436540,0.07652342,1633.8,1632.9,6.12372]
[1744725436837,0.07652342,1633.8,1632.5,0.005]
[1744725436838,9.72079488,1633.8,1632.5,0.005]
[1744725436987,6.12328,1633.2,1632.6,6.12503]
[1744725437183,0.07655198,1633.1,1632.8,6.1243]
[1744725437389,0.55609704,1633.7,1632.5,6.13052]
[1744725437390,6.12182,1633.5,1632.5,6.13052]